fUSD/lending_fUSD_20251231
["ID","MTS","AMOUNT","RATE_DAILY","PERIOD"]
[400180457,1767172244497,-1250.89035667,0.00016438,2]
[400180459,1767172244508,-1250.89035667,0.00016438,2]
[400180461,1767172244519,-1250.89035667,0.00016438,2]
[400180463,1767172244529,-1250.89035667,0.00016438,2]
[400180465,1767172244540,-1250.89035667,0.00016438,2]
[400180467,1767172244550,-1250.89035667,0.00016438,2]
[400180469,1767172244560,-1250.89035667,0.00016438,2]
[400180471,1767172244571,-1250.89035667,0.00016438,2]
[400180473,1767172244583,-1250.89035667,0.00016438,2]
[400180476,1767172244594,-1250.89035667,0.00016438,2]
[400180478,1767172244605,-1250.89035667,0.00016438,2]
[400180480,1767172244615,-1250.89035667,0.00016438,2]
[400180482,1767172244625,-1250.89035667,0.00016438,2]
[400180484,1767172244636,-1250.89035667,0.00016438,2]
[400180486,1767172244647,-1250.89035667,0.00016438,2]
[400180488,1767172244658,-1250.89035667,0.00016438,2]
[400180490,1767172244669,-1250.89035667,0.00016438,2]
[400180492,1767172244680,-1250.89035667,0.00016438,2]
[400180494,1767172244692,-1250.89035667,0.00016438,2]
[400180495,1767172244704,-1250.89035667,0.00016438,2]
[400180496,1767172244715,-1250.89035667,0.00016438,2]
[400180497,1767172244726,-1250.89035667,0.00016438,2]
[400180498,1767172244738,-1250.89035667,0.00016438,2]
[400180499,1767172244750,-1250.89035667,0.00016438,2]
[400180500,1767172244762,-1250.89035662,0.00016438,2]
[400180501,1767172244773,-1270.16,0.00016438,2]
[400180502,1767172244783,-500.0,0.00016438,2]
[400180503,1767172244794,-2063.07,0.00016438,2]
[400180504,1767172244803,-164.66,0.0001644,2]
[400180506,1767172244814,-500.0,0.00016493,2]
[400180508,1767172244824,-150.0,0.00016501,2]
[400180511,1767172244836,-546.45463776,0.00016521,2]
[400180513,1767172244848,-1005.70610325,0.00016521,2]
[400180515,1767172244859,-500.0,0.00016521,2]
[400180516,1767172244870,-1000.0,0.00016521,2]
[400180518,1767172244881,-1000.0,0.00016521,2]
[400180521,1767172244892,-500.0,0.00016521,2]
[400180523,1767172244903,-504.52900939,0.00016521,2]
[400180525,1767172244912,-1000.0,0.00016521,2]
[400180527,1767172244922,-500.73461727,0.00016521,2]
[400180529,1767172244932,-500.0,0.00016548,2]
[400180530,1767172244943,-150.0,0.00016562,2]
[400180532,1767172244953,-500.0,0.00016602,2]
[400180535,1767172244965,-150.0,0.00016622,2]
[400180537,1767172244976,-150.0,0.00016647,2]
[400180539,1767172244987,-150.0,0.00016647,2]
[400180541,1767172245001,-500.0,0.00016657,2]
[400180543,1767172245011,-391.62241139,0.0001666,2]
[400180545,1767172245023,-1000.0,0.00016679,2]
[400180547,1767172245033,-6794.10788247,0.000167,2]
[400180548,1767172245044,-500.0,0.00016712,2]
[400180550,1767172245055,-1270.16,0.00016712,2]
[400180553,1767172245068,-165.36,0.00016712,2]
[400180554,1767172245080,-1000.0,0.00016738,2]
[400180556,1767172245090,-300.0,0.00016738,2]
[400180558,1767172245100,-150.0,0.00016744,2]
[400180560,1767172245111,-736.0,0.00016756,2]
[400180563,1767172245122,-300.0,0.0001676,2]
[400180565,1767172245131,-1000.0,0.00016763,2]
[400180567,1767172245142,-300.0,0.00016765,2]
[400180569,1767172245152,-500.0,0.00016767,2]
[400180571,1767172245162,-168.0,0.00016769,2]
[400180572,1767172245172,-312.36664333,0.00016773,2]
[400180574,1767172245183,-300.0,0.00016775,2]
[400180577,1767172245194,-1000.0,0.00016783,2]
[400180579,1767172245204,-168.91070358,0.0001679,2]
[400180581,1767172245217,-168.0,0.00016803,2]
[400180583,1767172245227,-300.0,0.00016807,2]
[400180585,1767172245238,-1000.0,0.00016815,2]
[400180587,1767172245248,-613.58157419,0.00016815,2]
[400180589,1767172245260,-300.0,0.0001682,2]
[400180591,1767172245273,-500.0,0.00016822,2]
[400180593,1767172245284,-1000.0,0.00016827,2]
[400180595,1767172245294,-1000.0,0.00016834,2]
[400180597,1767172245305,-1000.0,0.0001684,2]
[400180599,1767172245315,-1000.0,0.00016846,2]
[400180601,1767172245327,-168.0,0.00016852,2]
[400180603,1767172245337,-1000.0,0.00016863,2]
[400180604,1767172245347,-200.0,0.00016864,2]
[400180607,1767172245359,-150.0,0.00016865,2]
[400180609,1767172245369,-500.0,0.00016876,2]
[400180613,1767172245381,-150.0,0.00016886,2]
[400180614,1767172245392,-300.0,0.00016889,2]
[400180617,1767172245402,-500.0,0.00016898,2]
[400180619,1767172245412,-500.0,0.00016898,2]
[400180621,1767172245423,-500.0,0.00016898,2]
[400180623,1767172245433,-500.0,0.00016898,2]
[400180625,1767172245443,-500.0,0.00016898,2]
[400180627,1767172245454,-500.0,0.00016898,2]
[400180629,1767172245464,-500.0,0.00016898,2]
[400180631,1767172245476,-500.0,0.00016898,2]
[400180633,1767172245488,-500.0,0.00016898,2]
[400180635,1767172245500,-500.0,0.00016898,2]
[400180637,1767172245511,-500.0,0.00016898,2]
[400180639,1767172245521,-500.0,0.00016898,2]
[400180641,1767172245531,-500.0,0.00016898,2]
[400180643,1767172245542,-10088.1585,0.000169,2]
[400180645,1767172245553,-2858.6002,0.000169,2]
[400180647,1767172245563,-33533.3694,0.000169,2]
[400180650,1767172245577,-10000.0,0.000169,2]
[400180652,1767172245587,-194.22384339,0.000169,2]
[400180654,1767172245599,-14981.95733249,0.000169,2]
[400180656,1767172245609,-8698.12396541,0.000169,2]
[400180657,1767172245619,-441.5280825,0.000169,2]
[400180659,1767172245630,-341.34054317,0.000169,2]
[400180662,1767172245641,-11115.06980772,0.000169,2]
[400180664,1767172245652,-3070.24872997,0.000169,2]
[400180666,1767172245662,-5201.06399143,0.000169,2]
[400180668,1767172245672,-7559.83914298,0.000169,2]
[400180670,1767172245683,-150.0,0.00016901,2]
[400180672,1767172245695,-150.0,0.00016901,2]
[400180674,1767172245706,-1000.0,0.00016903,2]
[400180676,1767172245717,-300.0,0.00016909,2]
[400180678,1767172245729,-150.0,0.00016911,2]
[400180680,1767172245739,-619.17615633,0.00016931,2]
[400180682,1767172245749,-1000.0,0.00016946,2]
[400180684,1767172245761,-300.0,0.00016955,2]
[400180687,1767172245772,-1000.0,0.00016955,2]
[400180689,1767172245782,-1000.0,0.00016966,2]
[400180691,1767172245793,-1000.0,0.00016971,2]
[400180693,1767172245803,-296.93519622,0.00016972,2]
[400180695,1767172245814,-500.0,0.00016972,2]
[400180697,1767172245825,-500.0,0.00016973,2]
[400180699,1767172245835,-500.0,0.00016973,2]
[400180701,1767172245846,-500.0,0.00016973,2]
[400180703,1767172245856,-500.0,0.00016973,2]
[400180705,1767172245867,-550.00207661,0.00016973,2]
[400180707,1767172245878,-500.0,0.00016973,2]
[400180709,1767172245888,-500.0,0.00016973,2]
[400180711,1767172245898,-500.0,0.00016973,2]
[400180713,1767172245910,-556.81874578,0.00016973,2]
[400180715,1767172245921,-500.0,0.00016973,2]
[400180717,1767172245932,-501.35455747,0.00016973,2]
[400180720,1767172245944,-335.11797254,0.00016973,2]
[400180722,1767172245955,-500.0,0.00016973,2]
[400180724,1767172245966,-500.0,0.00016973,2]
[400180726,1767172245977,-640.49953855,0.00016973,2]
[400180728,1767172245988,-500.0,0.00016973,2]
[400180730,1767172246001,-500.0,0.00016973,2]
[400180732,1767172246012,-500.0,0.00016973,2]
[400180734,1767172246023,-500.0,0.00016973,2]
[400180736,1767172246034,-500.0,0.00016973,2]
[400180738,1767172246046,-500.0,0.00016973,2]
[400180740,1767172246058,-519.646537,0.00016973,2]
[400180742,1767172246069,-162.29676587,0.00016973,2]
[400180744,1767172246082,-162.62949941,0.00016973,2]
[400180746,1767172246094,-500.0,0.00016973,2]
[400180748,1767172246104,-500.0,0.00016973,2]
[400180751,1767172246116,-500.60403875,0.00016973,2]
[400180753,1767172246127,-500.0,0.00016973,2]
[400180755,1767172246138,-501.00189818,0.00016973,2]
[400180757,1767172246150,-500.0,0.00016973,2]
[400180759,1767172246161,-500.0,0.00016973,2]
[400180761,1767172246172,-500.0,0.00016973,2]
[400180763,1767172246183,-427.40368537,0.00016973,2]
[400180765,1767172246194,-160.43301019,0.00016973,2]
[400180766,1767172246210,-500.0,0.00016973,2]
[400180769,1767172246221,-160.38133172,0.00016973,2]
[400180771,1767172246233,-160.42561905,0.00016973,2]
[400180773,1767172246243,-162.50883671,0.00016973,2]
[400180775,1767172246254,-571.16127303,0.00016973,2]
[400180777,1767172246265,-500.0,0.00016973,2]
[400180779,1767172246276,-500.0,0.00016973,2]
[400180781,1767172246287,-500.0,0.00016973,2]
[400180783,1767172246299,-500.0,0.00016973,2]
[400180785,1767172246310,-500.0,0.00016973,2]
[400180787,1767172246322,-500.0,0.00016973,2]
[400180789,1767172246333,-509.92461485,0.00016973,2]
[400180791,1767172246345,-500.0,0.00016973,2]
[400180793,1767172246355,-453.14856339,0.00016973,2]
[400180795,1767172246366,-500.0,0.00016973,2]
[400180797,1767172246376,-500.0,0.00016973,2]
[400180799,1767172246389,-160.40696499,0.00016973,2]
[400180801,1767172246401,-640.9293227,0.00016973,2]
[400180804,1767172246413,-160.43167139,0.00016973,2]
[400180806,1767172246424,-160.4337152,0.00016973,2]
[400180808,1767172246436,-160.40025967,0.00016973,2]
[400180810,1767172246447,-150.1570918,0.00016973,2]
[400180812,1767172246459,-500.0,0.00016973,2]
[400180814,1767172246470,-160.40600151,0.00016973,2]
[400180816,1767172246482,-500.0,0.00016973,2]
[400180818,1767172246494,-500.0,0.00016973,2]
[400180821,1767172246505,-150.4025269,0.00016973,2]
[400180823,1767172246516,-177.93864097,0.00016973,2]
[400180825,1767172246527,-160.43464258,0.00016973,2]
[400180827,1767172246538,-500.0,0.00016973,2]
[400180829,1767172246550,-500.0,0.00016973,2]
[400180852,1767172246786,-500.0,0.00016973,2]
[400180855,1767172246804,-500.0,0.00016973,2]
[400180857,1767172246816,-500.0,0.00016973,2]
[400180859,1767172246826,-500.0,0.00016973,2]
[400180861,1767172246837,-345.18608284,0.00016973,2]
[400180863,1767172246849,-159.68383532,0.00016973,2]
[400180865,1767172246860,-220.61613602,0.00016973,2]
[400180867,1767172246872,-374.93803347,0.00016973,2]
[400180869,1767172246883,-500.0,0.00016973,2]
[400180871,1767172246894,-500.0,0.00016973,2]
[400180873,1767172246905,-501.7651244,0.00016973,2]
[400180875,1767172246915,-523.82155928,0.00016973,2]
[400180877,1767172246926,-500.0,0.00016973,2]
[400180879,1767172246937,-500.0,0.00016973,2]
[400180881,1767172246948,-500.0,0.00016973,2]
[400180883,1767172246958,-500.0,0.00016973,2]
[400180885,1767172246969,-161.33309619,0.00016973,2]
[400180887,1767172246981,-150.0,0.00016973,2]
[400180890,1767172246992,-1000.0,0.00016985,2]
[400180892,1767172247005,-1270.16,0.00016986,2]
[400180894,1767172247015,-606.0,0.00016986,2]
[400180896,1767172247026,-157.83595805,0.00016986,2]
[400180897,1767172247036,-161.1699901,0.00016986,2]
[400180900,1767172247047,-156.00800985,0.00016986,2]
[400180902,1767172247058,-160.09867247,0.00016986,2]
[400180904,1767172247070,-152.26654522,0.00016986,2]
[400180906,1767172247082,-206.02935763,0.00016986,2]
[400180908,1767172247092,-151.41609778,0.00016986,2]
[400180910,1767172247102,-151.89260944,0.00016986,2]
[400180912,1767172247112,-159.79234637,0.00016986,2]
[400180914,1767172247123,-217.85001295,0.00016988,2]
[400180916,1767172247133,-217.85001295,0.0001699,2]
[400180918,1767172247144,-217.85001295,0.0001699,2]
[400180920,1767172247154,-151.0,0.00016996,2]
[400180922,1767172247164,-500.0,0.00016997,2]
[400180924,1767172247175,-500.0,0.00016997,2]
[400180926,1767172247185,-500.0,0.00016997,2]
[400180928,1767172247194,-500.0,0.00016997,2]
[400180930,1767172247205,-500.0,0.00016997,2]
[400180932,1767172247216,-500.0,0.00016997,2]
[400180934,1767172247228,-500.0,0.00016997,2]
[400180936,1767172247238,-500.0,0.00016997,2]
[400180939,1767172247250,-500.0,0.00016997,2]
[400180940,1767172247263,-500.0,0.00016997,2]
[400180942,1767172247274,-500.0,0.00016997,2]
[400180944,1767172247285,-500.0,0.00016997,2]
[400180946,1767172247295,-500.0,0.00016997,2]
[400180948,1767172247306,-151.0,0.00016997,2]
[400180950,1767172247319,-226876.61882308,0.00016998,2]
[400180952,1767172247332,-500.0,0.00016998,2]
[400180954,1767172247342,-468.04981383,0.00016998,2]
[400180956,1767172247353,-500.0,0.00016998,2]
[400180958,1767172247365,-243.30215833,0.00016998,2]
[400180960,1767172247376,-500.0,0.00016998,2]
[400180962,1767172247387,-500.0,0.00016998,2]
[400180965,1767172247399,-500.0,0.00016998,2]
[400180966,1767172247410,-500.0,0.00016998,2]
[400180967,1767172247421,-500.0,0.00016998,2]
[400180968,1767172247433,-500.0,0.00016998,2]
[400180970,1767172247444,-500.0,0.00016998,2]
[400180972,1767172247455,-500.0,0.00016998,2]
[400180974,1767172247465,-500.0,0.00016998,2]
[400180976,1767172247476,-500.0,0.00016998,2]
[400180977,1767172247486,-500.0,0.00016998,2]
[400180979,1767172247497,-500.0,0.00016998,2]
[400180982,1767172247508,-300.0,0.00016998,2]
[400180983,1767172247519,-300.0,0.00016998,2]
[400180986,1767172247530,-681.43055394,0.00016998,2]
[400180988,1767172247541,-500.0,0.00016998,2]
[400180990,1767172247551,-500.0,0.00016998,2]
[400180992,1767172247562,-300.0,0.00016998,2]
[400180994,1767172247574,-500.0,0.00016998,2]
[400180996,1767172247586,-500.0,0.00016998,2]
[400180998,1767172247596,-500.0,0.00016998,2]
[400181000,1767172247607,-500.0,0.00016998,2]
[400181002,1767172247618,-500.0,0.00016998,2]
[400181003,1767172247629,-156.11255964,0.00016998,2]
[400181006,1767172247640,-300.0,0.00016998,2]
[400181008,1767172247651,-666.0,0.00016998,2]
[400181010,1767172247663,-500.0,0.00016998,2]
[400181012,1767172247675,-500.0,0.00016998,2]
[400181014,1767172247685,-150.0,0.00016998,2]
[400181016,1767172247696,-381976.5748013,0.00016999,2]
[400181018,1767172247708,-467.19773594,0.00016999,2]
[400181020,1767172247719,-567.50706892,0.00016999,2]
[400181023,1767172247730,-500.0,0.00016999,2]
[400181025,1767172247740,-500.0,0.00016999,2]
[400181026,1767172247753,-500.0,0.00016999,2]
[400181028,1767172247764,-500.0,0.00016999,2]
[400181031,1767172247775,-313.70462567,0.00016999,2]
[400181033,1767172247784,-300.0,0.00016999,2]
[400181034,1767172247795,-680.43571587,0.00016999,2]
[400181036,1767172247806,-500.0,0.00016999,2]
[400181038,1767172247817,-500.0,0.00016999,2]
[400181040,1767172247828,-500.0,0.00016999,2]
[400181041,1767172247839,-500.0,0.00016999,2]
[400181042,1767172247851,-500.0,0.00016999,2]
[400181043,1767172247861,-500.0,0.00016999,2]
[400181044,1767172247872,-500.0,0.00016999,2]
[400181045,1767172247883,-500.0,0.00016999,2]
[400181046,1767172247893,-500.0,0.00016999,2]
[400181047,1767172247904,-286.76446351,0.00016999,2]
[400181048,1767172247915,-353.55847487,0.00016999,2]
[400181049,1767172247927,-500.0,0.00016999,2]
[400181050,1767172247938,-500.0,0.00016999,2]
[400181051,1767172247949,-500.0,0.00016999,2]
[400181052,1767172247959,-500.0,0.00016999,2]
[400181053,1767172247969,-500.0,0.00016999,2]
[400181054,1767172247979,-500.0,0.00016999,2]
[400181055,1767172247989,-500.0,0.00016999,2]
[400181056,1767172248003,-493.06,0.00016999,2]
[400181057,1767172248013,-500.0,0.00016999,2]
[400181058,1767172248024,-500.0,0.00016999,2]
[400181059,1767172248035,-500.0,0.00016999,2]
[400181060,1767172248046,-500.0,0.00016999,2]
[400181061,1767172248057,-500.0,0.00016999,2]
[400181062,1767172248068,-314.17525176,0.00016999,2]
[400181063,1767172248078,-300.0,0.00016999,2]
[400181064,1767172248089,-500.0,0.00016999,2]
[400181065,1767172248100,-535.01294338,0.00016999,2]
[400181066,1767172248112,-300.0,0.00016999,2]
[400181067,1767172248124,-500.0,0.00016999,2]
[400181068,1767172248135,-500.0,0.00016999,2]
[400181069,1767172248145,-500.0,0.00016999,2]
[400181070,1767172248157,-500.0,0.00016999,2]
[400181071,1767172248168,-500.0,0.00016999,2]
[400181072,1767172248179,-500.0,0.00016999,2]
[400181073,1767172248191,-500.0,0.00016999,2]
[400181074,1767172248202,-500.0,0.00016999,2]
[400181075,1767172248213,-561.12,0.00016999,2]
[400181076,1767172248224,-500.0,0.00016999,2]
[400181077,1767172248234,-500.0,0.00016999,2]
[400181078,1767172248245,-500.0,0.00016999,2]
[400181079,1767172248255,-500.0,0.00016999,2]
[400181080,1767172248266,-500.0,0.00016999,2]
[400181081,1767172248277,-500.0,0.00016999,2]
[400181082,1767172248288,-500.0,0.00016999,2]
[400181083,1767172248299,-500.0,0.00016999,2]
[400181084,1767172248310,-605.27361039,0.00016999,2]
[400181085,1767172248323,-300.0,0.00016999,2]
[400181086,1767172248334,-666.0,0.00016999,2]
[400181087,1767172248346,-587.42809654,0.00016999,2]
[400181088,1767172248357,-300.0,0.00016999,2]
[400181089,1767172248369,-300.0,0.00016999,2]
[400181090,1767172248381,-666.0,0.00016999,2]
[400181091,1767172248392,-6088629.12367324,0.00017,2]
[400181092,1767172248403,-346014.7910078,0.00017,2]
[400181093,1767172248560,-272737.71621439,0.00017,2]
[400181094,1767172248572,-160786.89028321,0.00017,2]
[400181095,1767172248591,-2055574.22584952,0.00017,2]
[400181096,1767172248601,-160.0,0.00017,2]
[400181097,1767172248613,-158.98,0.00017,2]
[400181098,1767172248624,-710759.9413889,0.00017,2]
[400181100,1767172248636,-653.76080498,0.00017,2]
[400181102,1767172248649,-570.39513047,0.00017,2]
[400181104,1767172248661,-3038.00553005,0.00017,2]
[400181106,1767172248673,-305.55524937,0.00017,2]
[400181118,1767172248856,500.0,0.00012685,2]
[400181119,1767172249375,-500.0,0.00012784,2]
[400181120,1767172249385,-500.0,0.00012784,2]
[400181121,1767172249396,-500.0,0.00012784,2]
[400181122,1767172249407,-500.0,0.00012784,2]
[400181123,1767172249418,-500.0,0.00012784,2]
[400181124,1767172249429,-500.0,0.00012784,2]
[400181125,1767172249440,-500.0,0.00012784,2]
[400181126,1767172249451,-500.0,0.00012784,2]
[400181127,1767172249461,-500.0,0.00012784,2]
[400181128,1767172249472,-500.0,0.00012784,2]
[400181129,1767172249482,-500.0,0.00012784,2]
[400181130,1767172249493,-500.0,0.00012784,2]
[400181131,1767172249504,-500.0,0.00012784,2]
[400181132,1767172249514,-500.0,0.00012784,2]
[400181133,1767172249524,-500.0,0.00012784,2]
[400181134,1767172249534,-500.0,0.00012784,2]
[400181135,1767172249545,-500.0,0.00012784,2]
[400181136,1767172249555,-500.0,0.00012784,2]
[400181137,1767172249566,-500.0,0.00012784,2]
[400181138,1767172249576,-500.0,0.00012784,2]
[400181139,1767172249587,-500.0,0.00012784,2]
[400181140,1767172249597,-500.0,0.00012784,2]
[400181141,1767172249608,-500.0,0.00012784,2]
[400181142,1767172249618,-500.0,0.00012784,2]
[400181143,1767172249628,-500.0,0.00012784,2]
[400181144,1767172249639,-500.0,0.00012784,2]
[400181145,1767172249649,-500.0,0.00012784,2]
[400181146,1767172249659,-500.0,0.00012784,2]
[400181147,1767172249669,-151.0,0.0001465,2]
[400181148,1767172249679,-151.0,0.0001465,2]
[400181149,1767172249691,-331.759132,0.00015344,2]
[400181150,1767172249702,-6542.0,0.00015554,2]
[400181151,1767172249714,-517.17751083,0.00016973,2]
[400181152,1767172249724,-530.8296871,0.00016973,2]
[400181153,1767172249736,-641176.23367007,0.00017,2]
[400181154,1767172249748,-3547.55081552,0.00017,2]
[400181155,1767172250374,-500.0,0.00012784,2]
[400181157,1767172250386,-500.0,0.00012784,2]
[400181158,1767172250396,-500.0,0.00012784,2]
[400181160,1767172250407,-500.0,0.00012784,2]
[400181162,1767172250417,-44.3916497,0.00012784,2]
[400181163,1767172250431,-455.6083503,0.00012784,2]
[400181164,1767172250441,-500.0,0.00012784,2]
[400181166,1767172250452,-500.0,0.00012784,2]
[400181168,1767172250461,-500.0,0.00012784,2]
[400181169,1767172250471,-500.0,0.00012784,2]
[400181170,1767172250482,-500.0,0.00012784,2]
[400181171,1767172250493,-500.0,0.00012784,2]
[400181172,1767172250503,-500.0,0.00012784,2]
[400181173,1767172250514,-500.0,0.00012784,2]
[400181174,1767172250524,-500.0,0.00012784,2]
[400181175,1767172250534,-500.0,0.00012784,2]
[400181176,1767172250544,-500.0,0.00012784,2]
[400181177,1767172250554,-500.0,0.00012784,2]
[400181178,1767172250564,-500.0,0.00012784,2]
[400181179,1767172250575,-500.0,0.00012784,2]
[400181180,1767172250586,-500.0,0.00012784,2]
[400181181,1767172250597,-500.0,0.00012784,2]
[400181182,1767172250607,-500.0,0.00012784,2]
[400181183,1767172250617,-500.0,0.00012784,2]
[400181184,1767172250628,-500.0,0.00012784,2]
[400181185,1767172250639,-331.759132,0.00015863,2]
[400181186,1767172250650,-1000.0,0.00016521,2]
[400181187,1767172250662,-1000.0,0.00016521,2]
[400181188,1767172250673,-39.9728737,0.00016521,2]
[400181189,1767172250757,9500.01,0.00012685,2]
[400181190,1767172250782,10000.01,0.00012685,2]
[400181191,1767172250809,10000.01,0.00012685,2]
[400181192,1767172250835,4033.3394,0.00012685,2]
[400181193,1767172254800,-196.62354232,0.00012784,2]
[400181194,1767172259305,-300.0,0.00012784,2]
[400181195,1767172262239,500.0,0.00043216,120]
[400181196,1767172264795,5966.6706,0.00012685,2]
[400181197,1767172264826,10000.01,0.00012685,2]
[400181198,1767172264857,10000.01,0.00012685,2]
[400181199,1767172264886,10000.01,0.00012685,2]
[400181200,1767172264919,10000.01,0.00012685,2]
[400181201,1767172264950,10000.01,0.00012685,2]
[400181202,1767172264980,10000.01,0.00012685,2]
[400181204,1767172265010,10000.01,0.00012685,2]
[400181206,1767172265040,10000.01,0.00012685,2]
[400181215,1767172265497,-175.9029752,0.00012685,2]
[400181216,1767172265966,500.0,0.00043216,30]
[400181217,1767172266054,500.0,0.00043216,30]
[400181218,1767172266738,500.0,0.00043216,30]
[400181219,1767172267337,500.0,0.00043216,30]
[400181220,1767172267926,500.0,0.00043216,30]
[400181221,1767172268537,500.0,0.00043216,30]
[400181222,1767172269141,500.0,0.00043216,30]
[400181223,1767172271258,322.6107,0.00043216,30]
[400181224,1767172271400,414.0,0.00043216,30]
[400181225,1767172274798,151.0,0.00043216,30]
[400181226,1767172275398,151.0,0.00043216,30]
[400181227,1767172276006,151.0,0.00043216,30]
[400181228,1767172276603,151.0,0.00043216,30]
[400181229,1767172277195,151.0,0.00043216,30]
[400181230,1767172277925,151.0,0.00043216,30]
[400181231,1767172278523,151.0,0.00043216,30]
[400181232,1767172279280,151.0,0.00043216,30]
[400181233,1767172279753,151.0,0.00043216,30]
[400181234,1767172280359,151.0,0.00043216,30]
[400181235,1767172281103,151.0,0.00043216,30]
[400181236,1767172281695,151.0,0.00043216,30]
[400181237,1767172282298,151.0,0.00043216,30]
[400181238,1767172299943,-165.336,0.00012431,2]
[400181239,1767172299967,-114.90551982,0.00012431,2]
[400181241,1767172303449,-495.68879679,0.00012431,2]
[400181242,1767172305578,-186.80973758,0.00012431,2]
[400181243,1767172308369,-281.54429759,0.00012431,2]
[400181244,1767172310124,-160.75987812,0.00012431,2]
[400181245,1767172311544,-180.42847508,0.00012431,2]
[400181246,1767172314314,-311.98380418,0.00012431,2]
[400181247,1767172315797,-195.78404405,0.00012431,2]
[400181248,1767172317941,-83.73144679,0.00012431,2]
[400181249,1767172317969,-110.27310489,0.00012585,2]
[400181250,1767172319584,-500.0,0.00012585,2]
[400181251,1767172321151,-167.84776934,0.00012585,2]
[400181252,1767172322677,-202.62079403,0.00012522,2]
[400181254,1767172324576,-156.60302264,0.00012522,2]
[400181255,1767172325817,191.46924854,0.00043216,120]
[400181256,1767172327785,565.68235218,7.945e-05,2]
[400181257,1767172327810,342.27673482,7.945e-05,2]
[400181258,1767172328927,-214.45265973,0.00012522,2]
[400181259,1767172330620,500.0,0.00043216,120]
[400181260,1767172331468,500.0,0.00043216,120]
[400181261,1767172332552,202.28468801,0.00043216,120]
[400181262,1767172335571,620.0,0.00043216,120]
[400181263,1767172336210,191.27620666,0.00043216,120]
[400181264,1767172337215,200.0,0.00043216,120]
[400181265,1767172346826,-170.11856859,0.00012522,2]
[400181303,1767172419958,-1527.314914,0.00012522,2]
[400181304,1767172419989,-1986.89821622,0.00012585,2]
[400181305,1767172420019,-409.3742697,0.00012585,2]
[400181306,1767172420050,-780.4673656,0.00012585,2]
[400181307,1767172420082,-291.90046896,0.00012683,2]
[400181308,1767172420228,-8.09953104,0.00012683,2]
[400181309,1767172420257,-300.0,0.00012683,2]
[400181310,1767172420288,-1200.0,0.00012683,2]
[400181311,1767172420316,-500.0,0.00012684,2]
[400181312,1767172420346,-500.0,0.00012684,2]
[400181313,1767172420376,-345.78060265,0.00012684,2]
[400181314,1767172420406,-500.0,0.00012684,2]
[400181315,1767172420437,-389.06172273,0.00012684,2]
[400181316,1767172420470,-500.0,0.00012684,2]
[400181317,1767172420502,-539.03342639,0.00012684,2]
[400181318,1767172420582,-500.0,0.00012684,2]
[400181319,1767172420616,-500.0,0.00012684,2]
[400181320,1767172420649,-500.0,0.00012684,2]
[400181321,1767172420681,-500.0,0.00012684,2]
[400181322,1767172420713,-500.0,0.00012684,2]
[400181323,1767172420746,-500.0,0.00012684,2]
[400181324,1767172420999,-500.0,0.00012684,2]
[400181325,1767172421033,-500.0,0.00012684,2]
[400181326,1767172421067,-500.0,0.00012684,2]
[400181327,1767172421098,-500.0,0.00012684,2]